bitfinex/quotes_BTCUSD_20250423
["timestamp","ask_amount","ask_price","bid_price","bid_amount"]
[1745388198960,0.0468,93447.0,93432.0,0.01070297]
[1745388199176,0.05750125,93447.0,93434.0,0.01070274]
[1745388199390,0.01155148,93445.0,93431.0,0.21405953]
[1745388199853,0.0498,93444.0,93432.0,0.01070297]
[1745388200085,0.0498,93444.0,93431.0,0.22476261]
[1745388200336,0.0498,93444.0,93432.0,0.01070297]
[1745388200564,0.0498,93444.0,93434.0,0.19778767]
[1745388201635,0.06050159,93444.0,93434.0,0.19778767]
[1745388202046,0.0498,93444.0,93434.0,0.19778767]
[1745388202886,0.0498,93444.0,93432.0,0.01070297]
[1745388203104,0.0498,93444.0,93431.0,0.22476394]
[1745388203315,0.0498,93444.0,93432.0,0.01070297]
[1745388204439,0.0428,93444.0,93432.0,0.01070297]
[1745388204860,0.0428,93444.0,93431.0,0.22476394]
[1745388205695,0.05350159,93444.0,93431.0,0.01070308]
[1745388205906,0.0428,93444.0,93431.0,0.01070308]
[1745388206112,0.05350159,93444.0,93430.0,0.20849087]
[1745388206295,0.05350159,93444.0,93431.0,0.01070308]
[1745388206504,0.0428,93444.0,93431.0,0.01070308]
[1745388206969,0.0428,93444.0,93433.0,0.01070285]
[1745388207204,0.05350159,93444.0,93432.0,0.01070297]
[1745388207743,0.0428,93444.0,93432.0,0.01070297]
[1745388207968,0.0428,93444.0,93434.0,0.01070274]
[1745388208203,0.0428,93444.0,93441.0,0.01070194]
[1745388208441,0.00085,93445.0,93441.0,0.01070194]
[1745388208442,0.00085,93445.0,93444.0,0.55403193]
[1745388208677,0.00085,93445.0,93444.0,2.44171483]
[1745388208887,0.00085,93445.0,93444.0,2.53947683]
[1745388209104,0.00085,93445.0,93444.0,2.19765083]
[1745388209322,0.00085,93445.0,93444.0,1.79711739]
[1745388209788,0.00085,93445.0,93444.0,1.25986239]
[1745388210657,0.00085,93445.0,93444.0,1.14604239]
[1745388210873,0.00085,93445.0,93444.0,1.14404239]
[1745388211080,0.00085,93445.0,93444.0,1.14704239]
[1745388211494,0.00085,93445.0,93444.0,1.15104239]
[1745388213898,0.00085,93445.0,93444.0,1.09090154]
[1745388215582,0.00085,93445.0,93444.0,0.86880305]
[1745388218792,0.00085,93445.0,93444.0,0.7605]
[1745388219523,0.00085,93445.0,93444.0,0.347]
[1745388221977,0.00085,93445.0,93444.0,0.45530305]
[1745388222177,0.00085,93445.0,93444.0,0.5151439]
[1745388223050,0.00085,93445.0,93444.0,0.1751439]
[1745388223257,0.00085,93445.0,93444.0,0.17728366]
[1745388225336,0.00085,93445.0,93444.0,0.59078366]
[1745388225534,0.00085,93445.0,93444.0,0.5886439]
[1745388228109,0.00085,93445.0,93444.0,0.5433439]
[1745388230681,0.00085,93445.0,93444.0,0.52880305]
[1745388231527,0.00085,93445.0,93444.0,0.007]
[1745388231944,0.04695,93445.0,93444.0,0.007]
[1745388232151,0.04095,93445.0,93444.0,0.003]
[1745388232557,0.04095,93445.0,93444.0,0.005]
[1745388232986,0.04095,93445.0,93440.0,0.01070205]
[1745388233190,0.04095,93445.0,93444.0,0.004]
[1745388233386,0.04095,93445.0,93444.0,0.002]
[1745388233795,0.04095,93445.0,93444.0,0.003]
[1745388234034,0.04095,93445.0,93444.0,0.001]
[1745388235969,0.04095,93445.0,93444.0,0.003]
[1745388236820,0.0008502,93455.0,93446.0,0.01070136]
[1745388237029,0.0008502,93455.0,93454.0,0.21400903]
[1745388237233,0.0008502,93455.0,93454.0,0.32445176]
[1745388237442,0.0008502,93455.0,93454.0,0.32231208]
[1745388239477,0.00131668,93455.0,93454.0,0.32231208]
[1745388239907,0.00131668,93455.0,93454.0,0.32531208]
[1745388240537,0.00131668,93455.0,93454.0,0.31031208]
[1745388243367,0.00131668,93455.0,93454.0,0.003]
[1745388243368,0.04931668,93455.0,93454.0,0.003]
[1745388244156,0.00131668,93455.0,93454.0,0.003]
[1745388244496,0.00131668,93455.0,93454.0,0.001]
[1745388244890,0.04904158,93462.0,93459.0,0.01069987]
[1745388245058,0.04915136,93462.0,93459.0,0.01069987]
[1745388245866,0.04915136,93462.0,93458.0,0.01069999]
[1745388246667,0.04915136,93462.0,93459.0,0.01069987]
[1745388249357,0.04915136,93462.0,93459.0,0.02822777]
[1745388252716,0.04315136,93462.0,93459.0,0.02822777]
[1745388254294,0.04315136,93462.0,93440.0,0.19778767]
[1745388254514,0.01069999,93458.0,93443.0,0.01070171]
[1745388254726,0.01069999,93458.0,93440.0,0.01070205]
[1745388254727,0.0458,93461.0,93448.0,0.01070113]
[1745388254934,0.0458,93461.0,93449.0,0.01070102]
[1745388255147,0.01069987,93459.0,93447.0,0.01070125]
[1745388255352,0.01069999,93458.0,93446.0,0.01070136]
[1745388255571,0.05,93452.0,93446.0,0.01070136]
[1745388255790,0.0476,93451.0,93447.0,0.01070125]
[1745388256001,0.0476,93451.0,93446.0,0.01070136]
[1745388256205,0.0476,93451.0,93447.0,0.01070125]
[1745388256834,0.0476,93451.0,93446.0,0.01070136]
[1745388257035,0.0476,93451.0,93447.0,0.01270125]
[1745388257468,0.0476,93451.0,93447.0,0.01070125]
[1745388257675,0.0476,93451.0,93446.0,0.01070136]
[1745388257886,0.0476,93451.0,93447.0,0.001]
[1745388258994,0.0476,93451.0,93446.0,0.001]
[1745388259700,0.0476,93451.0,93445.0,0.01070148]
[1745388259898,0.0476,93451.0,93444.0,0.01564794]
[1745388260116,0.0476,93451.0,93447.0,0.001]
[1745388260320,0.0406,93451.0,93447.0,0.001]
[1745388260543,0.00110978,93462.0,93459.0,0.01069987]
[1745388260758,0.0008502,93468.0,93465.0,0.01069919]
[1745388260990,0.0008502,93468.0,93467.0,0.21397926]
[1745388263078,0.0008502,93468.0,93467.0,0.21611871]
[1745388263279,0.0008502,93468.0,93467.0,0.32442176]
[1745388263499,0.0008502,93468.0,93467.0,0.32228231]
[1745388264547,0.0008502,93468.0,93467.0,0.41978231]
[1745388264774,0.0008502,93468.0,93467.0,5.63874916]
[1745388264995,1e-08,93476.0,93475.0,0.5685018]
[1745388265203,1e-08,93476.0,93475.0,5.39538285]
[1745388265422,1e-08,93476.0,93475.0,1.09030485]
[1745388265652,1e-08,93476.0,93475.0,1.13920485]
[1745388265870,1e-08,93476.0,93475.0,1.18550485]
[1745388266328,1e-08,93476.0,93475.0,1.19050485]
[1745388266542,1e-08,93476.0,93475.0,1.19250485]
[1745388266759,1e-08,93476.0,93475.0,0.97413281]
[1745388267582,1e-08,93476.0,93475.0,1.18809376]
[1745388268031,1e-08,93476.0,93475.0,1.18709376]
[1745388268487,1e-08,93476.0,93475.0,1.19509376]
[1745388268897,1e-08,93476.0,93475.0,1.18709376]
[1745388269129,1e-08,93476.0,93475.0,1.18909376]
[1745388269670,1e-08,93476.0,93475.0,1.18709376]
[1745388269911,1e-08,93476.0,93475.0,1.14719376]
[1745388270855,1e-08,93476.0,93475.0,1.14119376]
[1745388271262,1e-08,93476.0,93475.0,1.14619376]
[1745388271698,1e-08,93476.0,93475.0,0.740764]
[1745388271903,1e-08,93476.0,93475.0,0.747764]
[1745388273061,0.04734961,93493.0,93490.0,0.01069633]
[1745388273499,0.04745934,93493.0,93490.0,0.01069633]
[1745388274344,0.04745934,93493.0,93490.0,0.01269633]
[1745388274520,0.04745934,93493.0,93490.0,0.002]
[1745388274939,0.04745934,93493.0,93490.0,0.005]
[1745388275356,0.04745934,93493.0,93490.0,0.002]
[1745388275566,0.04745934,93493.0,93480.0,0.20848514]
[1745388275567,0.04745934,93493.0,93482.0,0.01069724]
[1745388275774,0.04745934,93493.0,93490.0,0.005]
[1745388276020,0.21392204,93492.0,93490.0,0.005]
[1745388276463,0.21492204,93492.0,93490.0,0.002]
[1745388277109,0.01069655,93488.0,93477.0,0.01069781]
[1745388277555,0.01069644,93489.0,93477.0,0.01069781]
[1745388277781,0.01069655,93488.0,93482.0,0.005]
[1745388278227,0.01069655,93488.0,93477.0,0.01069781]
[1745388278434,0.01069678,93486.0,93477.0,0.007]
[1745388278630,0.01069667,93487.0,93477.0,0.007]
[1745388278859,0.01069747,93480.0,93477.0,0.003]
[1745388279065,0.0499,93479.0,93477.0,0.003]
[1745388279265,0.21395408,93478.0,93477.0,0.003]
[1745388280352,0.01069839,93472.0,93461.0,0.01069965]
[1745388280574,0.22466076,93475.0,93461.0,0.01069965]
[1745388280781,0.01069804,93475.0,93462.0,0.01069953]
[1745388281004,0.01069816,93474.0,93463.0,0.01069942]
[1745388281232,0.01069827,93473.0,93462.0,0.01069953]
[1745388281870,0.01069839,93472.0,93461.0,0.01269965]
[1745388282086,0.01069839,93472.0,93461.0,0.01169965]
[1745388282295,0.01069839,93472.0,93461.0,0.01069965]
[1745388282949,0.01069827,93473.0,93462.0,0.01069953]
[1745388283170,0.00969804,93475.0,93463.0,0.01069942]
[1745388283406,0.01069781,93477.0,93465.0,0.01069919]
[1745388283695,0.01069816,93474.0,93463.0,0.01069942]
[1745388283818,0.01069816,93474.0,93464.0,0.0106993]
[1745388284069,0.01069793,93476.0,93465.0,0.01069919]
[1745388284615,0.001,93475.0,93466.0,0.19778767]
[1745388284847,0.22465449,93477.0,93464.0,0.0106993]
[1745388285048,0.001,93474.0,93464.0,0.0106993]
[1745388285256,0.22465449,93477.0,93464.0,0.0106993]
[1745388285479,0.01069804,93475.0,93465.0,0.01069919]
[1745388285665,0.01069804,93475.0,93464.0,0.0106993]
[1745388285905,0.01169804,93475.0,93465.0,0.01069919]
[1745388286110,0.001,93475.0,93465.0,0.01069919]
[1745388286535,0.01169804,93475.0,93464.0,0.0106993]
[1745388286748,0.001,93475.0,93464.0,0.0106993]
[1745388286955,0.001,93475.0,93465.0,0.01069919]
[1745388287340,0.001,93474.0,93465.0,0.01069919]
[1745388287490,0.001,93474.0,93464.0,0.0106993]
[1745388287890,0.001,93474.0,93465.0,0.01069919]
[1745388288096,0.01069793,93476.0,93465.0,0.01069919]
[1745388288393,0.00669793,93476.0,93465.0,0.01069919]
[1745388289912,0.01069793,93476.0,93465.0,0.01069919]
[1745388290126,0.001,93474.0,93465.0,0.01069919]
[1745388290329,0.01069793,93476.0,93466.0,0.01069907]
[1745388290547,0.01069804,93475.0,93464.0,0.0106993]
[1745388290799,0.001,93476.0,93466.0,0.01069907]
[1745388291022,0.01169793,93476.0,93464.0,0.0106993]
[1745388291263,0.01069804,93475.0,93464.0,0.0106993]
[1745388291470,0.01069804,93475.0,93465.0,0.01069919]
[1745388291703,0.01069804,93475.0,93464.0,0.0106993]
[1745388292139,0.01069793,93476.0,93463.0,0.01069942]
[1745388292344,0.01069804,93475.0,93462.0,0.01069953]
[1745388292559,0.01069781,93477.0,93463.0,0.01069942]
[1745388292772,0.01069781,93477.0,93464.0,0.0106993]
[1745388292972,0.0106977,93478.0,93467.0,0.01069896]
[1745388293485,0.01069781,93477.0,93467.0,0.01069896]
[1745388294101,0.0106977,93478.0,93467.0,0.01069896]
[1745388294472,0.0116977,93478.0,93467.0,0.01069896]
[1745388295042,0.01269781,93477.0,93466.0,0.01069907]
[1745388295245,0.01169781,93477.0,93467.0,0.01069896]
[1745388295455,0.01069781,93477.0,93467.0,0.01069896]
[1745388295697,0.05,93469.0,93466.0,0.01069907]
[1745388296130,0.043,93469.0,93466.0,0.01069907]
[1745388297276,0.043,93469.0,93464.0,0.0106993]
[1745388297477,0.044,93469.0,93466.0,0.01069907]
[1745388298059,0.043,93469.0,93466.0,0.22467877]
[1745388299951,0.044,93469.0,93466.0,0.22467877]
[1745388300166,0.044,93469.0,93466.0,0.01069907]
[1745388303120,0.044,93469.0,93466.0,0.22467842]
[1745388303985,0.037,93469.0,93466.0,0.01069907]
[1745388304187,0.001,93469.0,93466.0,0.01069907]
[1745388304850,0.001,93469.0,93467.0,0.21397926]
[1745388307289,0.0469,93479.0,93473.0,0.01069827]
[1745388308183,0.0476,93485.0,93482.0,0.01069724]
[1745388308422,0.0476,93485.0,93481.0,0.22464356]
[1745388309124,0.0476,93485.0,93479.0,0.01069758]
[1745388309335,0.0476,93485.0,93480.0,0.01069747]
[1745388309549,0.0476,93485.0,93478.0,0.22465178]
[1745388309771,0.11584571,93493.0,93475.0,0.41174748]
[1745388309772,0.0481,93492.0,93489.0,0.01069644]
[1745388310024,0.0481,93492.0,93487.0,0.22462939]
[1745388310256,0.0481,93492.0,93485.0,0.22463355]
[1745388310472,0.0481,93492.0,93485.0,0.21393665]
[1745388311112,0.0481,93492.0,93485.0,0.22463355]
[1745388311325,0.0511,93492.0,93485.0,0.21393665]
[1745388311539,0.0411,93492.0,93485.0,0.21393665]
[1745388311977,0.0441,93492.0,93480.0,0.2139495]
[1745388312219,0.0441,93492.0,93462.0,0.4599]
[1745388312220,0.047,93485.0,93472.0,0.34]
[1745388312429,0.047,93485.0,93475.0,0.21396]
[1745388312653,0.01069758,93479.0,93472.0,0.34]
[1745388312902,0.01069713,93483.0,93472.0,0.34]
[1745388313112,0.01069713,93483.0,93470.0,0.224671]
[1745388313357,0.01069713,93483.0,93471.0,0.0106985]
[1745388313548,0.01069701,93484.0,93471.0,0.0106985]
[1745388313759,0.01069701,93484.0,93472.0,0.01069839]
[1745388314216,0.01069713,93483.0,93471.0,0.0106985]
[1745388314653,0.0489,93482.0,93471.0,0.0116985]
[1745388315077,0.0489,93482.0,93471.0,0.001]
[1745388315530,0.0489,93482.0,93472.0,0.01069839]
[1745388315735,0.05,93473.0,93471.0,0.0116985]
[1745388315943,0.05,93473.0,93471.0,0.22466766]
[1745388318737,0.05,93473.0,93471.0,0.0106985]
[1745388319159,0.05,93473.0,93470.0,0.01069861]
[1745388319323,0.043,93473.0,93470.0,0.01069861]
[1745388321872,0.043,93473.0,93471.0,0.2139701]
[1745388322084,0.043,93473.0,93470.0,0.01069861]
[1745388323022,0.043,93473.0,93471.0,0.2139701]
[1745388324083,0.043,93473.0,93470.0,0.01069861]
[1745388324296,0.043,93473.0,93466.0,0.01069907]
[1745388324526,0.043,93473.0,93470.0,0.01069861]
[1745388326729,0.043,93473.0,93468.0,0.01069884]
[1745388326971,0.043,93473.0,93469.0,0.01069873]
[1745388327185,0.036,93473.0,93469.0,0.01069873]
[1745388327406,0.036,93473.0,93470.0,0.01069861]
[1745388328323,0.036,93473.0,93470.0,0.22467054]
[1745388329299,0.036,93473.0,93472.0,0.21396781]
[1745388330890,0.037,93473.0,93472.0,0.21396781]
[1745388331925,0.037,93473.0,93472.0,0.55396781]
[1745388333184,0.036,93473.0,93472.0,0.55396781]
[1745388334783,0.029,93473.0,93472.0,0.55396781]
[1745388335085,0.029,93473.0,93472.0,0.66227086]
[1745388335302,0.00010973,93493.0,93488.0,0.01069655]
[1745388335728,0.0125536,93492.0,93489.0,0.01069644]
[1745388336473,0.00010973,93493.0,93489.0,0.01069644]
[1745388336684,0.00310973,93493.0,93488.0,0.01069655]
[1745388336897,0.01303894,93492.0,93488.0,0.01069655]
[1745388337326,0.003,93492.0,93488.0,0.01069655]
[1745388338274,0.007,93492.0,93484.0,0.01069701]
[1745388338492,0.004,93492.0,93485.0,0.3506969]
[1745388338975,0.01304827,93491.0,93486.0,0.01069678]
[1745388339177,0.007,93492.0,93486.0,0.01069678]
[1745388339409,0.00024203,93491.0,93486.0,0.01069678]
[1745388339613,0.007,93492.0,93487.0,0.01069667]
[1745388339819,0.01304791,93491.0,93486.0,0.01069678]
[1745388340025,0.004,93492.0,93486.0,0.01069678]
[1745388340231,0.007,93492.0,93486.0,0.01069678]
[1745388340442,0.05,93488.0,93486.0,0.01069678]
[1745388341281,0.05,93488.0,93484.0,0.01069701]
[1745388341516,0.05,93488.0,93485.0,0.0106969]
[1745388341708,0.05,93488.0,93485.0,0.3506969]
[1745388342336,0.053,93488.0,93485.0,0.3506969]
[1745388342548,0.043,93488.0,93485.0,0.3506969]
[1745388342993,0.046,93488.0,93485.0,0.22463344]
[1745388343878,0.049,93488.0,93485.0,0.22463344]
[1745388345045,0.049,93488.0,93487.0,0.55393348]
[1745388345304,0.049,93488.0,93487.0,0.34]
[1745388346198,0.046,93488.0,93487.0,0.34]
[1745388346434,0.049,93488.0,93487.0,0.34]
[1745388346862,0.006,93488.0,93487.0,0.34]
[1745388347082,0.003,93488.0,93487.0,0.34]
[1745388347316,0.006,93488.0,93487.0,0.3873]
[1745388347541,0.006,93488.0,93487.0,0.49560305]
[1745388347980,0.006,93488.0,93487.0,6.05613662]
[1745388348205,0.00019,93509.0,93507.0,0.21388773]
[1745388348442,0.00019,93509.0,93508.0,0.00213854]
[1745388350157,0.00019,93509.0,93508.0,0.0170092]
[1745388350313,0.00019,93509.0,93508.0,0.00213854]
[1745388350527,0.00019,93509.0,93508.0,0.00413854]
[1745388350923,0.00019,93509.0,93508.0,0.01904962]
[1745388351133,0.00019,93509.0,93508.0,0.00413854]
[1745388351544,0.00019,93509.0,93508.0,0.00713854]
[1745388352613,0.00019,93509.0,93508.0,0.01961166]
[1745388352858,0.00019,93509.0,93508.0,0.005]
[1745388353727,0.00019,93509.0,93508.0,0.01985569]
[1745388353908,0.0134586,93509.0,93508.0,0.005]
[1745388354147,0.00019,93509.0,93508.0,0.005]
[1745388354352,0.0134586,93509.0,93508.0,0.01487216]
[1745388354568,0.00047321,93509.0,93504.0,0.01069472]
[1745388354779,0.00047321,93509.0,93505.0,0.01069461]
[1745388355186,0.00701658,93515.0,93505.0,0.01069461]
[1745388355419,0.01323552,93514.0,93507.0,0.01069438]
[1745388355541,0.01323552,93514.0,93506.0,0.0106945]
[1745388355914,0.01323552,93514.0,93507.0,0.01069438]
[1745388356124,0.01323552,93514.0,93508.0,0.01069427]
[1745388356322,0.01323552,93514.0,93507.0,0.01069438]
[1745388356780,0.01323552,93514.0,93505.0,0.01069461]
[1745388357200,0.01323552,93514.0,93502.0,0.05319605]
[1745388357409,0.01323552,93514.0,93502.0,0.06852796]
[1745388357614,0.01323552,93514.0,93505.0,0.01069461]
[1745388358025,0.0239291,93514.0,93505.0,0.01069461]
[1745388358164,0.01323552,93514.0,93506.0,0.0106945]
[1745388358363,0.01323552,93514.0,93505.0,0.01069461]
[1745388358976,0.01323552,93514.0,93508.0,0.01069427]
[1745388359180,0.0482,93516.0,93510.0,0.01069404]
[1745388359384,0.01333935,93515.0,93509.0,0.01069415]
[1745388359591,0.01333935,93515.0,93508.0,0.01069427]
[1745388359922,0.01333935,93515.0,93510.0,0.01069404]
[1745388360615,0.01333935,93515.0,93511.0,0.01069392]
[1745388360794,0.02403282,93515.0,93503.0,0.21389652]
[1745388361131,0.01333935,93515.0,93507.0,0.01069438]
[1745388361555,0.01333935,93515.0,93508.0,0.01069427]
[1745388361775,0.01333935,93515.0,93507.0,0.01069438]
[1745388361916,0.01333935,93515.0,93508.0,0.01069427]
[1745388362121,0.01333935,93515.0,93509.0,0.01069415]
[1745388362350,0.01333935,93515.0,93508.0,0.22457938]
[1745388362549,0.01333935,93515.0,93508.0,0.01069427]
[1745388362949,0.00633935,93515.0,93508.0,0.01069427]
[1745388363158,0.00016731,93514.0,93508.0,0.01069427]
[1745388363330,0.00016731,93514.0,93509.0,0.01069415]
[1745388363527,0.22497782,93520.0,93509.0,0.01069415]
[1745388363728,0.0120986,93513.0,93509.0,0.01069415]
[1745388363932,0.01069324,93517.0,93508.0,0.01069427]
[1745388364140,0.01211421,93516.0,93509.0,0.01069415]
[1745388364731,0.01211421,93516.0,93508.0,0.01069427]
[1745388365178,0.01211421,93516.0,93505.0,0.22458641]
[1745388365380,0.01069347,93515.0,93505.0,0.01069461]
[1745388365585,0.01211421,93516.0,93506.0,0.0106945]
[1745388365909,0.02280756,93516.0,93506.0,0.0106945]
[1745388366115,0.01211421,93516.0,93507.0,0.01069438]
[1745388366354,0.01211421,93516.0,93509.0,0.01069415]
[1745388368275,0.01211421,93516.0,93511.0,0.01069392]
[1745388368589,0.01069301,93519.0,93510.0,0.01069404]
[1745388368952,0.0102577,93518.0,93510.0,0.01069404]
[1745388369292,0.0102577,93518.0,93511.0,0.01069392]
[1745388369483,0.0102577,93518.0,93510.0,0.01069404]
[1745388370235,0.0102577,93518.0,93515.0,0.01069347]
[1745388370824,0.0032577,93518.0,93515.0,0.01069347]
[1745388371027,9.868e-05,93517.0,93515.0,0.01069347]
[1745388371395,0.0004249,93520.0,93515.0,0.01069347]
[1745388371828,0.0004249,93520.0,93516.0,0.01069335]
[1745388372002,0.00904299,93519.0,93512.0,0.01069381]
[1745388372258,0.00010097,93518.0,93511.0,0.01069392]
[1745388372711,0.00010097,93518.0,93513.0,0.0106937]
[1745388373138,0.00010097,93518.0,93510.0,0.01069404]
[1745388373313,0.01079409,93518.0,93509.0,0.01069415]
[1745388373550,0.00010097,93518.0,93512.0,0.01069381]
[1745388374561,0.00010097,93518.0,93506.0,0.22458311]
[1745388374772,0.00010097,93518.0,93511.0,0.01069392]
[1745388376544,0.00010097,93518.0,93510.0,0.01069404]
[1745388377182,0.00010097,93518.0,93511.0,0.01069392]
[1745388377357,0.00010097,93518.0,93510.0,0.01069404]
[1745388377767,0.00010097,93518.0,93508.0,0.01069427]
[1745388377970,0.00010097,93518.0,93503.0,0.34]
[1745388378147,0.21387458,93513.0,93502.0,0.02602686]
[1745388378357,0.22456572,93514.0,93502.0,0.02602686]
[1745388378607,0.00904201,93512.0,93503.0,0.01069484]
[1745388378756,0.00904201,93512.0,93504.0,0.01069472]
[1745388378952,6.315e-05,93511.0,93503.0,0.35069484]
[1745388379157,0.22456139,93516.0,93504.0,0.01069472]
[1745388379462,0.21428456,93520.0,93503.0,0.56458965]
[1745388379463,0.0004249,93520.0,93519.0,0.55386028]
[1745388386396,0.0004249,93520.0,93517.0,0.01069324]
[1745388386397,0.0425497,93530.0,93528.0,0.2138397]
[1745388386603,0.00013982,93529.0,93528.0,0.2138397]
[1745388386803,0.00931759,93529.0,93528.0,0.2138397]
[1745388387046,0.00013982,93529.0,93528.0,0.2138397]
[1745388389063,0.00013982,93529.0,93526.0,0.01015776]
[1745388389276,0.00013982,93529.0,93528.0,0.2138397]
[1745388394103,0.10484,93540.0,93536.0,0.21382046]
[1745388394104,0.09840462,93540.0,93536.0,0.21382046]
[1745388394313,0.09847934,93540.0,93539.0,0.21381455]
[1745388394523,7.472e-05,93540.0,93539.0,0.21381455]
[1745388397209,7.472e-05,93540.0,93539.0,0.22801772]
[1745388401720,0.05338909,93550.0,93540.0,0.01069061]
[1745388401920,0.05385501,93550.0,93540.0,0.01069061]
[1745388402137,0.0093666,93549.0,93540.0,0.01069061]
[1745388402342,0.0093666,93549.0,93539.0,0.23870844]
[1745388403516,0.0093666,93549.0,93540.0,0.01069061]
[1745388404175,0.0093666,93549.0,93542.0,0.21380628]
[1745388404398,0.0093666,93549.0,93542.0,0.22449666]
[1745388404854,0.0093666,93549.0,93543.0,0.01069027]
[1745388405071,0.0093666,93549.0,93542.0,0.22449666]
[1745388405480,0.0093666,93549.0,93540.0,0.2245006]
[1745388406411,0.0093666,93549.0,93539.0,0.02489389]
[1745388406592,0.0093666,93549.0,93540.0,0.01069061]
[1745388406899,0.0093666,93549.0,93539.0,0.02489389]
[1745388407107,0.0093666,93549.0,93540.0,0.01069061]
[1745388407428,0.02005618,93549.0,93539.0,0.02489389]
[1745388407839,0.0093666,93549.0,93540.0,0.01069061]
[1745388408480,0.0093666,93549.0,93539.0,0.02489389]
[1745388409540,0.00011024,93548.0,93540.0,0.01069061]
[1745388409762,0.00011024,93548.0,93539.0,0.02489389]
[1745388409970,0.00011024,93548.0,93540.0,0.22450276]
[1745388410397,0.00011024,93548.0,93545.0,0.01069004]
[1745388410665,0.00011024,93548.0,93545.0,0.22448877]
[1745388410881,0.00046592,93550.0,93546.0,0.22448649]
[1745388411110,0.00046592,93550.0,93547.0,0.01068981]
[1745388411324,0.00046592,93550.0,93549.0,0.34]
[1745388413201,0.00046592,93550.0,93549.0,0.341]
[1745388413609,0.00046592,93550.0,93549.0,0.342]
[1745388414709,0.00046592,93550.0,93549.0,0.45030305]
[1745388417372,0.01295722,93553.0,93552.0,0.55378484]
[1745388420331,0.01295722,93553.0,93552.0,0.34]
[1745388420546,0.01295722,93553.0,93552.0,0.55378484]
[1745388420782,0.01295722,93553.0,93552.0,0.34]
[1745388421011,0.01295722,93553.0,93551.0,0.21378514]
[1745388421012,0.01068924,93552.0,93549.0,0.001]
[1745388421238,0.0464,93552.0,93549.0,0.001]
[1745388421452,0.00846209,93551.0,93549.0,0.001]
[1745388421635,0.00846209,93551.0,93542.0,0.01069038]
[1745388421897,0.00846209,93551.0,93543.0,0.01069027]
[1745388422346,0.00846209,93551.0,93544.0,0.01069015]
[1745388422551,0.00846209,93551.0,93545.0,0.01069004]
[1745388422756,0.00846209,93551.0,93540.0,0.01069061]
[1745388422965,0.00846209,93551.0,93544.0,0.21380279]
[1745388423413,0.0464,93552.0,93545.0,0.01069004]
[1745388423633,0.0464,93552.0,93542.0,0.2138077]
[1745388423841,0.00846209,93551.0,93544.0,0.21380296]
[1745388424054,0.00846209,93551.0,93544.0,0.22449311]
[1745388424268,0.0464,93552.0,93544.0,0.21380296]
[1745388424389,0.0464,93552.0,93544.0,0.22449311]
[1745388424802,0.0464,93552.0,93548.0,0.21379371]
[1745388425022,0.0394,93552.0,93548.0,0.21379371]
[1745388425272,0.0394,93552.0,93546.0,0.22448698]
[1745388425403,0.0394,93552.0,93546.0,0.21379706]
[1745388425782,0.00843426,93551.0,93546.0,0.21379706]
[1745388425995,0.0394,93552.0,93544.0,0.21380094]
[1745388426136,0.0394,93552.0,93546.0,0.21379848]
[1745388426329,0.0394,93552.0,93546.0,0.21379663]
[1745388427149,0.0394,93552.0,93546.0,0.22448655]
[1745388427354,0.0394,93552.0,93547.0,0.01068981]
[1745388427559,0.0394,93552.0,93550.0,0.21378907]
[1745388427761,0.0394,93552.0,93548.0,0.21379398]
[1745388427961,0.0394,93552.0,93548.0,0.22448367]
[1745388428280,0.0394,93552.0,93548.0,0.21379398]
[1745388428894,0.00833842,93551.0,93548.0,0.22448367]
[1745388429223,0.00833842,93551.0,93548.0,0.21379398]
[1745388429417,0.01395722,93553.0,93548.0,0.21379398]
[1745388429815,0.00834124,93552.0,93548.0,0.21379398]
[1745388430018,0.00834124,93552.0,93548.0,0.22448367]
[1745388430251,0.01395722,93553.0,93551.0,0.21378713]
[1745388430452,0.01395722,93553.0,93548.0,0.21379398]
[1745388430628,0.01395722,93553.0,93548.0,0.22448367]
[1745388430827,0.00834124,93552.0,93548.0,0.22448367]
[1745388431023,0.00834124,93552.0,93549.0,0.01068958]
[1745388431230,0.01395722,93553.0,93548.0,0.22448367]
[1745388431403,0.01395722,93553.0,93549.0,0.01068958]
[1745388431628,0.00698662,93552.0,93548.0,0.22448367]
[1745388432227,0.01395722,93553.0,93549.0,0.01068958]
[1745388432582,0.01394384,93553.0,93549.0,0.01068958]
[1745388432785,0.00582218,93552.0,93549.0,0.01068958]
[1745388433192,0.01394384,93553.0,93549.0,0.01068958]
[1745388433411,0.01394384,93553.0,93552.0,0.08579272]
[1745388433566,0.01394384,93553.0,93552.0,0.1962333]
[1745388433769,0.01394384,93553.0,93552.0,0.19409577]
[1745388434444,0.01394384,93553.0,93551.0,0.21378713]
[1745388437300,0.02463296,93553.0,93542.0,0.4135]
[1745388437495,0.00582218,93552.0,93545.0,0.01069004]
[1745388437695,0.00582218,93552.0,93546.0,0.01068992]
[1745388437914,0.00582218,93552.0,93547.0,0.01068981]
[1745388438137,0.00582218,93552.0,93546.0,0.01068992]
[1745388438340,0.00582218,93552.0,93547.0,0.01068981]
[1745388438542,0.00582218,93552.0,93546.0,0.01068992]
[1745388438944,0.048,93551.0,93546.0,0.01068992]
[1745388439245,0.05868935,93551.0,93542.0,0.4135]
[1745388439444,0.01069004,93545.0,93539.0,0.01420317]
[1745388439862,0.01069049,93541.0,93533.0,0.01069141]
[1745388440085,0.01069038,93542.0,93533.0,0.01069141]
[1745388440301,0.01069038,93542.0,93534.0,0.01069129]
[1745388440517,0.00579114,93541.0,93536.0,0.01069107]
[1745388441029,0.00578832,93540.0,93537.0,0.01069095]
[1745388441240,0.00578832,93540.0,93538.0,0.21381684]
[1745388441455,0.01068958,93549.0,93541.0,0.01069049]
[1745388441685,0.11854384,93553.0,93545.0,0.01069004]
[1745388441904,0.00572789,93548.0,93545.0,0.01069004]
[1745388442108,0.11854384,93553.0,93545.0,0.01069004]
[1745388442337,0.11854384,93553.0,93547.0,0.01068981]
[1745388442553,0.0057534,93552.0,93550.0,0.22447701]
[1745388442997,0.11854384,93553.0,93550.0,0.22447701]
[1745388442998,0.01394384,93553.0,93550.0,0.22447701]
[1745388444086,0.01394384,93553.0,93552.0,0.21378484]
[1745388444931,0.01394384,93553.0,93552.0,0.32208789]
[1745388446007,0.01494384,93553.0,93552.0,0.32208789]
[1745388448068,0.01294384,93553.0,93552.0,0.32208789]
[1745388448271,0.00530832,93553.0,93552.0,1.17208789]
[1745388448531,0.000425,93578.0,93568.0,0.59894829]
[1745388448532,0.0008903,93569.0,93568.0,0.59894829]
[1745388448714,0.0008903,93569.0,93568.0,0.70725134]